bitfinex/quotes_SOLUSD_20260306
["timestamp","ask_amount","ask_price","bid_price","bid_amount"]
[1772783976267,0.74418489,88.691,88.664,0.30582457]
[1772783978068,0.74418489,88.691,88.667,0.30576275]
[1772783978247,0.74418489,88.689,88.667,0.30576275]
[1772783978648,11.27522832,88.69,88.667,0.30576275]
[1772783979056,12.01941321,88.69,88.667,0.30576275]
[1772783979257,0.74418489,88.689,88.667,0.30576275]
[1772783980251,0.74418489,88.705,88.669,0.30559314]
[1772783980452,0.74418489,88.705,88.67,0.30559314]
[1772783981874,0.74418489,88.705,88.673,0.30553973]
[1772783982378,28.17885684,88.719,88.673,0.30553973]
[1772783982379,0.74418489,88.703,88.673,0.30553973]
[1772783984871,0.74418489,88.701,88.675,0.28432314]
[1772783987884,0.74418489,88.699,88.676,11.27700843]
[1772783990680,0.74418489,88.697,88.676,11.27700843]
[1772783991363,0.74418489,88.697,88.669,0.30510576]
[1772783991684,0.74418489,88.697,88.659,0.30505911]
[1772783991867,0.74418489,88.697,88.661,0.30505911]
[1772783992061,0.74418489,88.697,88.662,0.30505911]
[1772783992959,0.74418489,88.695,88.665,0.30501082]
[1772783993354,0.74418489,88.695,88.664,0.28432314]
[1772783993579,0.74418489,88.695,88.66,0.30495588]
[1772783993769,0.74418489,88.695,88.661,11.27891632]
[1772783995068,0.74418489,88.693,88.661,11.27891632]
[1772783996989,0.74418489,88.691,88.662,0.30482498]
[1772783997168,0.74418489,88.714,88.663,0.30482498]
[1772783998571,0.74418489,88.712,88.666,0.30473898]
[1772783999162,0.74418489,88.709,88.666,0.30473898]
[1772783999380,0.74418489,88.709,88.665,0.5890145]
[1772783999572,0.74418489,88.709,88.666,0.30469136]
[1772784000897,0.73145355,88.707,88.667,11.27815308]
[1772784001189,0.73145355,88.699,88.662,11.27876592]
[1772784002884,3.54921718,88.69,88.657,11.2794252]
[1772784003091,3.54921718,88.69,88.639,0.30099908]
[1772784003092,0.73145355,88.689,88.639,0.30099908]
[1772784003984,0.73145355,88.679,88.639,0.30099908]
[1772784004576,0.73145355,88.679,88.626,0.29921477]
[1772784004892,0.73145355,88.667,88.628,0.58353791]
[1772784005079,0.73145355,88.659,88.627,11.28324325]
[1772784005597,0.73145355,88.659,88.627,11.58158024]
[1772784006090,0.73145355,88.659,88.627,11.28324325]
[1772784006487,0.73145355,88.659,88.628,0.29747473]
[1772784006995,0.73145355,88.659,88.629,11.28298863]
[1772784008299,0.73145355,88.659,88.629,0.29578013]
[1772784009507,0.73145355,88.679,88.629,0.29578013]
[1772784009804,0.73145355,88.675,88.629,0.29578013]
[1772784010475,0.73145355,88.673,88.632,0.29413621]
[1772784013019,0.73145355,88.673,88.635,0.2925226]
[1772784013311,0.73145355,88.671,88.635,0.2925226]
[1772784013803,0.73145355,88.669,88.633,11.28247943]
[1772784014612,0.73145355,88.669,88.634,0.29094275]
[1772784014780,11.27662693,88.679,88.636,0.70874276]
[1772784014977,28.19045766,88.683,88.637,11.28197028]
[1772784015299,11.27535545,88.689,88.639,0.70874276]
[1772784015685,39.46374408,88.689,88.639,0.70874276]
[1772784015886,39.46374408,88.689,88.638,0.28432314]
[1772784016197,3.54921718,88.68,88.638,0.28432314]
[1772784016694,0.73145355,88.678,88.64,0.28432314]
[1772784017285,0.73145355,88.678,88.64,0.9930659]
[1772784018198,0.73145355,88.678,88.64,0.70874276]
[1772784018399,11.27662693,88.679,88.63,11.28283662]
[1772784018400,0.73145355,88.669,88.63,11.28283662]
[1772784018609,0.73145355,88.659,88.63,11.28283662]
[1772784018809,0.73145355,88.657,88.624,11.2836252]
[1772784019502,11.27929797,88.658,88.61,0.90874276]
[1772784019503,0.73145355,88.649,88.61,0.90874276]
[1772784020002,0.73145355,88.649,88.621,11.28400717]
[1772784020906,0.73145355,88.648,88.621,11.99274993]
[1772784021907,0.73145355,88.648,88.622,0.70874276]
[1772784022502,28.19510685,88.668,88.623,0.70874276]
[1772784022503,0.73145355,88.658,88.623,0.70874276]
[1772784022696,0.73145355,88.658,88.625,0.9930659]
[1772784023014,0.73145355,88.677,88.626,0.70874276]
[1772784024998,0.73145355,88.675,88.629,0.70874276]
[1772784027020,0.73145355,88.673,88.632,0.70874276]
[1772784028109,0.73145355,88.669,88.63,11.28286133]
[1772784028317,0.73145355,88.659,88.63,11.28286133]
[1772784029596,3.54921718,88.67,88.622,0.9930659]
[1772784029597,0.73145355,88.657,88.622,0.9930659]
[1772784030316,0.73145355,88.657,88.622,0.70874276]
[1772784030517,0.73145355,88.657,88.621,11.28400717]
[1772784031322,0.73145355,88.657,88.622,0.69103865]
[1772784031504,0.73145355,88.657,88.624,0.69103865]
[1772784031698,0.68611863,88.655,88.625,0.69103865]
[1772784033817,0.68611863,88.653,88.625,11.28349788]
[1772784034112,0.68611863,88.653,88.621,0.69103865]
[1772784034320,0.68611863,88.653,88.62,0.2]
[1772784034713,0.68611863,88.653,88.621,11.28400717]
[1772784035198,0.68611863,88.653,88.62,0.2]
[1772784035905,0.68611863,88.651,88.622,0.69103865]
[1772784038929,0.68611863,88.649,88.623,11.28375252]
[1772784039220,0.68611863,88.649,88.622,0.69103865]
[1772784039425,0.68611863,88.649,88.623,11.28375252]
[1772784040404,0.68611863,88.649,88.624,0.69103865]
[1772784041208,0.68611863,88.649,88.626,0.69103865]
[1772784041903,0.68611863,88.648,88.626,0.69103865]
[1772784042103,0.68611863,88.648,88.62,11.48403363]
[1772784042530,0.68611863,88.648,88.621,0.69103865]
[1772784044526,78.93602975,88.665,88.622,11.28387984]
[1772784044527,0.68611863,88.646,88.622,11.28387984]
[1772784044726,0.68611863,88.646,88.62,0.2]
[1772784045203,0.68611863,88.646,88.62,11.48413065]
[1772784046008,0.68611863,88.646,88.621,0.69103865]
[1772784047930,0.68611863,88.646,88.622,11.28387984]
[1772784048321,0.68611863,88.646,88.622,11.97491849]
[1772784048628,0.68611863,88.644,88.622,11.97491849]
[1772784049324,0.68611863,88.644,88.622,11.28387984]
[1772784049930,0.68611863,88.642,88.62,0.2]
[1772784052134,0.68611863,88.64,88.62,0.2]
[1772784054938,11.28171572,88.639,88.62,0.2]
[1772784055114,0.68611863,88.638,88.62,0.2]
[1772784055916,0.68611863,88.638,88.61,0.2]
[1772784056915,0.68611863,88.636,88.61,0.2]
[1772784057434,11.28197028,88.637,88.589,11.28804743]
[1772784057435,0.68611863,88.629,88.589,11.28804743]
[1772784057633,0.68611863,88.629,88.59,0.89103865]
[1772784057829,0.68611863,88.629,88.595,0.69103865]
[1772784059044,0.68611863,88.627,88.595,0.69103865]
[1772784060436,0.68611863,88.627,88.59,0.2]
[1772784061220,0.71478141,88.625,88.591,0.73170063]
[1772784061838,0.71478141,88.625,88.592,0.73170063]
[1772784062028,0.71478141,88.63,88.593,0.73170063]
[1772784062221,11.28278388,88.631,88.593,0.73170063]
[1772784063237,0.71478141,88.609,88.578,0.73170063]
[1772784063970,0.71478141,88.609,88.574,11.28987183]
[1772784064144,0.71478141,88.609,88.581,0.73170063]
[1772784064339,0.71478141,88.609,88.582,0.73170063]
[1772784064538,11.28357678,88.625,88.583,0.73170063]
[1772784064738,11.99835819,88.625,88.583,0.73170063]
[1772784065446,0.71478141,88.624,88.586,0.73170063]
[1772784066144,0.71478141,88.619,88.573,0.73170063]
[1772784066346,0.71478141,88.619,88.574,11.28988914]
[1772784066728,0.71478141,88.619,88.573,0.73170063]
[1772784067334,203.29976431,88.649,88.57,0.2]
[1772784067335,0.71478141,88.607,88.571,0.73170063]
[1772784067532,0.71478141,88.607,88.572,0.73170063]
[1772784069551,0.71478141,88.605,88.572,0.73170063]
[1772784070563,0.71478141,88.603,88.572,0.73170063]
[1772784070933,0.71478141,88.599,88.571,0.73170063]
[1772784071162,39.50160263,88.604,88.571,0.73170063]
[1772784071163,11.28617218,88.604,88.572,0.73170063]
[1772784072129,11.2847712,88.615,88.572,0.73170063]
[1772784072325,39.4966992,88.615,88.572,0.73170063]
[1772784072529,28.211928,88.615,88.574,0.73170063]
[1772784073158,0.71478141,88.614,88.574,0.73170063]
[1772784074054,0.71478141,88.614,88.575,0.73170063]
[1772784074439,28.211928,88.615,88.575,0.73170063]
[1772784074440,0.71478141,88.609,88.575,0.73170063]
[1772784074633,0.71478141,88.599,88.571,0.73170063]
[1772784074830,0.71478141,88.599,88.572,0.73170063]
[1772784077664,0.71478141,88.597,88.572,0.73170063]
[1772784077960,0.71478141,88.597,88.57,0.2]
[1772784078344,0.71478141,88.589,88.546,0.28432314]
[1772784078742,39.50427773,88.598,88.528,0.69218778]
[1772784078743,0.71478141,88.579,88.528,0.69218778]
[1772784078948,0.71478141,88.569,88.532,11.29530402]
[1772784079150,0.71478141,88.549,88.528,0.69218778]
[1772784079767,0.71478141,88.547,88.528,0.69218778]
[1772784080069,0.71478141,88.547,88.52,0.2]
[1772784081166,3.55340716,88.54,88.52,0.2]
[1772784081466,0.71478141,88.539,88.52,0.2]
[1772784081652,0.71478141,88.539,88.51,0.2]
[1772784081853,0.71478141,88.537,88.511,0.73170063]
[1772784082868,12.00962192,88.536,88.511,0.73170063]
[1772784083456,12.00962192,88.536,88.512,0.73170063]
[1772784083656,0.71478141,88.535,88.512,0.73170063]
[1772784084151,0.71478141,88.553,88.512,0.73170063]
[1772784084969,11.29228962,88.556,88.513,11.29777546]
[1772784085171,12.00707103,88.556,88.515,0.73170063]
[1772784085362,0.71478141,88.555,88.516,0.73170063]
[1772784085551,0.71478141,88.555,88.517,0.73170063]
[1772784087172,0.71478141,88.553,88.519,0.73170063]
[1772784087368,0.71478141,88.549,88.519,0.73170063]
[1772784088265,0.71478141,88.539,88.51,0.2]
[1772784089073,0.71478141,88.519,88.49,0.2]
[1772784089375,0.71478141,88.519,88.501,11.29930735]
[1772784089578,0.71478141,88.526,88.501,12.03100798]
[1772784089772,0.71478141,88.526,88.501,0.73170063]
[1772784090374,0.71478141,88.526,88.5,0.2]
[1772784090779,0.71478141,88.526,88.501,0.72789397]
[1772784091271,11.29624399,88.525,88.502,11.29917967]
[1772784091575,11.29624399,88.525,88.503,0.72789397]
[1772784091876,0.7338276,88.524,88.501,0.72789397]
[1772784092583,12.02952948,88.53,88.502,0.72789397]
[1772784092953,0.7338276,88.529,88.502,0.72789397]
[1772784093359,0.7338276,88.527,88.502,0.72789397]
[1772784093576,0.7338276,88.527,88.5,0.2]
[1772784095952,0.7338276,88.525,88.496,102.0]
[1772784096155,3.55340716,88.51,88.496,38.99549149]
[1772784096358,0.11377312,88.525,88.497,0.72789397]
[1772784096566,39.53640737,88.526,88.497,0.72789397]
[1772784096767,11.29611639,88.526,88.497,0.72789397]
[1772784097275,0.11194443,88.525,88.497,0.72789397]
[1772784098652,0.11013674,88.519,88.497,0.72789397]
[1772784098854,39.53640737,88.526,88.497,0.72789397]
[1772784099078,0.11013674,88.554,88.5,0.72789397]
[1772784099371,0.10834981,88.552,88.502,0.72789397]
[1772784099578,3.55340716,88.55,88.503,0.72789397]
[1772784099757,0.10834981,88.549,88.504,0.28432314]
[1772784099951,0.10834981,88.549,88.506,0.72789397]
[1772784100157,0.10834981,88.539,88.506,0.72789397]
[1772784101279,0.10834981,88.539,88.508,0.72789397]
[1772784101501,0.10115717,88.549,88.508,0.72789397]
[1772784103774,11.2931823,88.549,88.509,11.29828605]
[1772784103974,11.2931823,88.549,88.51,0.72789397]
[1772784104270,50.82,88.558,88.511,0.72789397]
[1772784104271,11.29216211,88.557,88.511,0.72789397]
[1772784104861,39.52256738,88.557,88.511,0.72789397]
[1772784106158,39.52256738,88.557,88.513,1.01221711]
[1772784106387,39.52256738,88.557,88.514,0.72789397]
[1772784107885,11.29216211,88.557,88.516,0.72789397]
[1772784108178,11.29216211,88.557,88.517,0.72789397]
[1772784109368,3.56129855,88.55,88.498,0.72789397]
[1772784109576,3.56129855,88.55,88.5,0.72789397]
[1772784110283,11.29228962,88.556,88.503,0.72789397]
[1772784110587,11.29216211,88.557,88.506,0.72789397]
[1772784112187,11.29216211,88.557,88.509,0.72789397]
[1772784112485,3.56129855,88.55,88.509,0.72789397]
[1772784113061,3.56129855,88.54,88.509,0.72789397]
[1772784113267,3.56129855,88.54,88.497,0.72789397]
[1772784113695,3.56129855,88.53,88.497,0.72789397]
[1772784114478,0.60618214,88.528,88.49,0.2]
[1772784115188,11.29514326,88.534,88.491,0.28432314]
[1772784115691,11.29330984,88.548,88.491,0.28432314]
[1772784116488,28.23232361,88.551,88.494,0.72789397]
[1772784117488,0.55933275,88.55,88.494,0.72789397]
[1772784120098,11.2931823,88.549,88.496,0.85371158]
[1772784120306,11.2931823,88.549,88.497,0.56938844]
[1772784120607,0.525177,88.548,88.497,0.56938844]
[1772784122494,0.52145128,88.539,88.499,0.56938844]
[1772784123115,0.52145128,88.519,88.49,0.2]
[1772784124606,0.51781065,88.517,88.49,0.2]
[1772784125490,0.51781065,88.517,88.49,0.76938844]
[1772784126608,11.2971373,88.518,88.491,0.56938844]
[1772784126809,11.2971373,88.518,88.492,0.56938844]
[1772784126999,11.29590753,88.528,88.492,0.56938844]
[1772784127200,0.51250502,88.549,88.493,0.56938844]
[1772784127510,11.80568732,88.549,88.493,0.56938844]
[1772784127691,11.2931823,88.549,88.493,0.56938844]
[1772784128909,3.56129855,88.55,88.496,0.56938844]
[1772784129099,0.51077695,88.549,88.496,0.56938844]
[1772784129306,0.50906872,88.539,88.496,0.56938844]
[1772784130611,0.50738012,88.529,88.496,0.56938844]
[1772784131115,0.50571091,88.527,88.496,0.56938844]
[1772784132284,0.50571091,88.527,88.497,11.29981807]
[1772784132488,0.50571091,88.527,88.498,0.56938844]
[1772784133310,11.29611639,88.526,88.498,0.56938844]
[1772784133488,11.79854618,88.526,88.498,0.56938844]
[1772784133905,0.50242979,88.525,88.498,0.56938844]
[1772784135005,0.50081744,88.523,88.493,11.30031196]
[1772784135202,0.50081744,88.523,88.494,0.56938844]
[1772784136007,0.50081744,88.523,88.49,0.2]
[1772784136592,0.50081744,88.523,88.491,0.56938844]
[1772784137910,0.49609066,88.519,88.49,0.2]
[1772784138911,0.49609066,88.519,88.481,0.56938844]
[1772784139102,0.29455112,88.509,88.481,0.56938844]
[1772784140617,11.2984137,88.508,88.481,0.56938844]
[1772784141111,0.29152489,88.507,88.481,0.56938844]
[1772784143113,11.29866901,88.506,88.482,0.56938844]
[1772784143613,0.28711465,88.515,88.482,0.56938844]
[1772784143811,11.58476247,88.514,88.482,0.56938844]
[1772784144010,11.29649921,88.523,88.484,0.56938844]
[1772784146030,11.29598879,88.527,88.485,39.55472678]
[1772784146235,11.29598879,88.527,88.487,0.56938844]
[1772784147622,11.29550637,88.531,88.487,0.56938844]
[1772784147812,11.2931823,88.549,88.487,0.56938844]
[1772784148212,11.57353294,88.547,88.49,0.56938844]
[1772784150024,0.2773995,88.546,88.49,0.56938844]
[1772784150331,0.2773995,88.544,88.493,0.5205597]
[1772784151412,0.27347042,88.542,88.496,0.52911586]
[1772784156121,3.56129855,88.55,88.499,0.52911586]
[1772784156122,0.26843905,88.54,88.499,0.52911586]
[1772784156325,0.26721712,88.539,88.499,0.52911586]
[1772784157626,0.26600922,88.529,88.488,0.52911586]
[1772784157837,0.26600922,88.529,88.489,0.52911586]
[1772784158534,0.2648152,88.527,88.491,0.52911586]
[1772784160320,0.26246814,88.525,88.493,0.52911586]
[1772784162434,0.26017469,88.542,88.496,0.52911586]
[1772784162936,0.26017469,88.556,88.496,0.52911586]
[1772784163435,0.25904768,88.549,88.496,0.52911586]
[1772784164434,39.52256738,88.557,88.499,0.52911586]
[1772784164435,0.25793362,88.557,88.499,0.52911586]
[1772784164650,62.1121339,88.558,88.499,0.52911586]
[1772784164825,51.07793362,88.558,88.499,0.52911586]
[1772784165131,0.25793362,88.557,88.499,0.52911586]
[1772784165715,11.55009573,88.557,88.499,0.52911586]
[1772784166540,11.55009573,88.557,88.502,0.52911586]
[1772784167125,50.82,88.558,88.505,0.52911586]
[1772784167439,11.29216211,88.557,88.505,0.52911586]
[1772784167642,11.54682973,88.557,88.505,0.52911586]
[1772784168038,0.25466762,88.556,88.505,0.52911586]
[1772784168633,0.25360386,88.554,88.507,0.52911586]
[1772784171164,11.29267218,88.553,88.51,0.52911586]
[1772784171332,0.25048535,88.552,88.51,0.52911586]
[1772784172040,0.25048535,88.539,88.503,11.82815064]
[1772784172347,0.25048535,88.539,88.504,0.52911586]
[1772784173644,0.24846559,88.537,88.506,0.52911586]
[1772784173947,0.24846559,88.537,88.488,0.52911586]
[1772784174149,0.24846559,88.529,88.489,0.52911586]
[1772784175654,0.24649195,88.527,88.491,0.52911586]
[1772784177753,0.2445634,88.525,88.492,11.82957239]
[1772784177961,0.2445634,88.525,88.493,0.52911586]
[1772784180150,11.53720902,88.524,88.495,0.49382911]
[1772784180338,11.2963716,88.524,88.495,0.49382911]
[1772784180540,0.24083742,88.528,88.495,0.49382911]
[1772784181064,0.24083742,88.528,88.49,0.49382911]
[1772784183241,0.23815378,88.519,88.481,11.30186141]
[1772784183435,0.23815378,88.519,88.48,0.2]
[1772784183641,0.23815378,88.506,88.48,0.2]
[1772784183847,0.23815378,88.506,88.481,0.49382911]
[1772784184079,0.23815378,88.506,88.482,0.49382911]
[1772784184558,0.23727971,88.519,88.482,0.49382911]
[1772784185059,0.23727971,88.526,88.483,0.49382911]
[1772784185243,11.53265966,88.525,88.486,0.49382911]
[1772784185444,0.23641567,88.524,88.486,0.49382911]
[1772784188168,0.23388265,88.522,88.488,0.49382911]
[1772784190663,11.2961233,88.526,88.49,0.49382911]
[1772784191170,0.23143592,88.525,88.49,0.49382911]
[1772784192964,0.230639,88.523,88.492,0.49382911]
[1772784195151,11.52492958,88.522,88.494,0.49382911]
[1772784195472,0.22830276,88.521,88.494,0.49382911]
[1772784195674,0.22830276,88.519,88.486,0.49382911]
[1772784197169,0.22830276,88.519,88.48,0.2]
[1772784197170,0.22678964,88.526,88.488,0.49382911]
[1772784197374,0.22678964,88.539,88.488,0.49382911]
[1772784197975,0.22678964,88.529,88.488,0.49382911]
[1772784199108,0.2260461,88.539,88.489,0.49382911]
[1772784199376,11.29458537,88.538,88.492,0.49382911]
[1772784201072,0.22458452,88.537,88.492,0.49382911]
[1772784201776,0.2238663,88.556,88.495,0.49382911]
[1772784201975,0.2238663,88.539,88.495,0.49382911]
[1772784202979,0.2238663,88.539,88.496,0.49382911]
[1772784203866,0.22245452,88.537,88.497,11.79364718]
[1772784204092,0.22245452,88.537,88.498,0.49382911]
[1772784205463,0.22107498,88.535,88.5,0.49382911]
[1772784206284,0.22107498,88.535,88.491,0.49382911]
[1772784206465,11.29484051,88.536,88.491,0.49382911]
[1772784206466,0.22039707,88.529,88.491,0.49382911]
[1772784207886,11.29484051,88.536,88.477,0.28432314]
[1772784207887,0.21972695,88.527,88.493,0.49382911]
[1772784209987,0.21776241,88.525,88.494,11.81360222]
[1772784210364,0.21776241,88.525,88.495,0.51340108]
[1772784212380,0.21524672,88.523,88.497,0.47938823]
[1772784214271,0.21403181,88.521,88.497,0.47938823]
[1772784216086,11.29662682,88.522,88.499,0.47938823]
[1772784216471,0.21284464,88.531,88.499,0.47938823]
[1772784218391,0.21168459,88.529,88.499,0.47938823]
[1772784220388,0.21055104,88.519,88.484,0.47938823]
[1772784220987,0.21055104,88.509,88.478,0.47938823]
[1772784222292,0.21055104,88.509,88.476,11.3023943]
[1772784223687,0.20889906,88.507,88.476,11.3023943]
[1772784224882,0.20836101,88.489,88.472,0.1863046]
[1772784226093,0.20782913,88.487,88.436,28.26898772]
[1772784226294,11.30096736,88.488,88.437,0.47938823]
[1772784226295,0.20730336,88.469,88.437,0.47938823]
[1772784226477,0.20730336,88.469,88.393,102.0]
[1772784226478,0.20730336,88.469,88.439,0.47938823]
[1772784226672,0.20730336,88.483,88.439,0.47938823]
[1772784226872,0.20730336,88.487,88.439,0.47938823]
[1772784228480,3.56923672,88.48,88.441,0.47938823]
[1772784228682,3.77550659,88.48,88.441,0.47938823]
[1772784228882,0.20626987,88.479,88.441,0.47938823]
[1772784229116,3.56923672,88.47,88.441,0.47938823]
[1772784229401,3.56923672,88.47,88.434,11.30782965]
[1772784229402,0.20576202,88.469,88.435,0.47938823]
[1772784230403,3.56923672,88.45,88.424,0.47938823]
[1772784230700,11.30518342,88.455,88.426,0.47938823]
[1772784231395,11.50994715,88.455,88.426,0.47938823]
[1772784231893,3.56923672,88.45,88.426,0.47938823]
[1772784232594,0.20427317,88.439,88.412,0.47938823]
[1772784233685,0.20378825,88.437,88.412,0.47938823]
[1772784234493,0.20378825,88.437,88.406,0.47938823]
[1772784234802,0.20378825,88.437,88.407,11.31120532]
[1772784235384,0.20378825,88.437,88.41,0.67938823]
[1772784235584,0.20378825,88.437,88.411,0.47938823]
[1772784237184,0.20190362,88.435,88.411,0.47938823]
[1772784238200,0.20190362,88.435,88.41,0.2]
[1772784239387,0.20190362,88.435,88.411,11.31080974]
[1772784239587,0.20099346,88.439,88.412,0.47938823]
[1772784240504,0.20010409,88.444,88.412,0.47938823]
[1772784240704,3.56923672,88.43,88.41,0.6939594]
[1772784240885,0.20010409,88.429,88.41,0.2]
[1772784241286,0.20010409,88.429,88.404,0.4939594]
[1772784241596,0.19966705,88.409,88.388,0.4939594]
[1772784242312,0.19966705,88.409,88.38,0.4939594]
[1772784243701,0.19880798,88.399,88.371,11.31592943]
[1772784244088,0.19880798,88.399,88.37,0.4939594]
[1772784244288,0.19880798,88.399,88.364,0.4939594]
[1772784244903,3.56923672,88.4,88.353,0.51816574]
[1772784245105,3.56923672,88.4,88.354,0.51816574]
[1772784245289,11.31119355,88.408,88.355,0.51816574]
[1772784245691,3.56923672,88.4,88.357,0.51816574]
[1772784246701,3.69383402,88.424,88.357,0.51816574]
[1772784246702,3.56923672,88.41,88.357,0.51816574]
[1772784247090,3.56923672,88.4,88.357,0.51816574]
[1772784247607,3.56923672,88.41,88.357,0.51816574]
[1772784247909,11.31106561,88.409,88.36,0.51816574]
[1772784248699,3.56923672,88.43,88.36,0.51816574]
[1772784249109,3.56923672,88.44,88.363,0.51816574]
[1772784249293,11.30658948,88.444,88.363,0.51816574]
[1772784249496,11.30658948,88.444,88.367,0.51816574]
[1772784249699,11.30658948,88.444,88.372,0.51816574]
[1772784249897,11.30603886,88.449,88.374,0.51816574]
[1772784250101,11.305367,88.454,88.377,0.51816574]
[1772784250407,11.305367,88.454,88.38,0.51816574]
[1772784250611,28.26093888,88.462,88.383,0.51816574]
[1772784250810,11.30512874,88.456,88.386,0.51816574]
[1772784251010,50.44579555,88.445,88.389,0.4939594]
[1772784251505,50.44579555,88.445,88.392,0.4939594]
[1772784251704,50.44579555,88.445,88.396,3.69383402]
[1772784251902,50.03250729,88.445,88.398,0.4939594]
[1772784252508,27.72129099,88.468,88.401,0.4939594]
[1772784252710,27.72129099,88.468,88.403,0.4939594]
[1772784253212,28.20889236,88.468,88.403,0.4939594]
[1772784253713,11.30364994,88.467,88.409,0.4939594]
[1772784254013,39.02492575,88.468,88.41,0.4939594]
[1772784254611,39.51252712,88.468,88.41,0.4939594]
[1772784255196,39.51252712,88.468,88.413,0.4939594]
[1772784256216,27.72129099,88.468,88.419,0.4939594]
[1772784256411,27.51495922,88.468,88.419,0.4939594]
[1772784257296,27.51495922,88.468,88.422,0.4939594]
[1772784258302,27.51495922,88.468,88.425,0.4939594]
[1772784260298,27.51495922,88.468,88.428,0.4939594]
[1772784262422,0.48760137,88.467,88.431,0.4939594]
[1772784264019,0.48760137,88.466,88.433,0.28432314]
[1772784264215,0.48760137,88.466,88.433,0.77828254]
[1772784264716,0.48760137,88.466,88.434,0.4939594]
[1772784265709,27.51495922,88.468,88.434,0.4939594]
[1772784265912,0.48760137,88.481,88.437,0.4939594]
[1772784267405,0.48760137,88.481,88.435,39.57709051]
[1772784267406,0.48760137,88.48,88.44,0.4939594]
[1772784268818,0.48760137,88.48,88.443,0.4939594]
[1772784269016,50.88,88.482,88.443,0.4939594]
[1772784269626,0.1,88.5,88.445,0.77828254]
[1772784269815,0.1,88.5,88.446,0.4939594]
[1772784270010,0.1,88.5,88.447,0.47765666]
[1772784270211,0.1,88.5,88.448,1.60826447]
[1772784270516,0.1,88.5,88.45,0.47765666]
[1772784270716,0.1,88.5,88.452,0.47765666]
[1772784270924,0.1,88.5,88.455,0.49059268]
[1772784273332,0.1,88.5,88.457,0.77491582]
[1772784273531,0.1,88.5,88.458,0.49059268]
[1772784273728,0.1,88.5,88.457,0.28432314]
[1772784273729,0.1,88.5,88.461,0.49059268]
[1772784274327,0.45135318,88.499,88.461,0.49059268]
[1772784276617,0.45135318,88.497,88.464,0.49059268]
[1772784277425,0.45135318,88.497,88.456,0.49059268]
[1772784277740,0.45135318,88.497,88.456,11.7955901]
[1772784278036,0.45135318,88.497,88.457,0.49059268]
[1772784279240,39.54891635,88.498,88.445,28.26609448]
[1772784279241,0.45135318,88.495,88.459,0.49059268]
[1772784280234,0.45135318,88.495,88.438,0.49059268]
[1772784280439,0.45135318,88.495,88.439,0.49059268]
[1772784282136,11.30020114,88.494,88.44,39.57485299]
[1772784282323,0.45135318,88.493,88.442,0.49059268]
[1772784284339,0.45135318,88.499,88.445,0.49059268]
[1772784286043,0.45135318,88.499,88.448,0.49059268]
[1772784286952,0.45135318,88.497,88.448,0.49059268]
[1772784287129,11.29969038,88.498,88.446,11.3063338]
[1772784287130,0.45135318,88.489,88.446,11.3063338]
[1772784288342,0.45135318,88.487,88.446,11.3063338]
[1772784288941,0.45135318,88.479,88.44,0.28432314]
[1772784289171,0.45135318,88.479,88.437,11.30748442]
[1772784290043,0.45135318,88.479,88.437,40.06678815]
[1772784290350,0.45135318,88.479,88.438,0.49059268]
[1772784290543,0.45135318,88.477,88.436,0.49059268]
[1772784291923,0.45135318,88.488,88.436,0.49059268]
[1772784292539,0.45135318,88.486,88.439,0.49059268]
[1772784295656,0.45135318,88.484,88.442,0.49059268]
[1772784296761,11.30135051,88.485,88.421,3.69383402]
[1772784296762,0.45135318,88.479,88.429,0.49059268]
[1772784297242,39.55472678,88.485,88.414,28.27584282]
[1772784297243,0.45135318,88.469,88.422,0.63275425]
[1772784297748,0.45135318,88.449,88.415,0.49059268]
[1772784300025,3.5656425,88.46,88.417,0.48464842]
[1772784300026,0.48920025,88.447,88.417,0.48464842]
[1772784300860,0.48920025,88.454,88.417,0.48464842]
[1772784301047,0.48920025,88.471,88.42,0.48464842]
[1772784301254,0.48920025,88.471,88.421,0.48464842]
[1772784301751,11.30211688,88.479,88.421,0.48464842]
[1772784301956,11.79131713,88.479,88.424,0.48464842]
[1772784302254,0.48920025,88.478,88.424,0.48464842]
[1772784303153,0.48920025,88.459,88.418,0.48464842]
[1772784303457,0.48920025,88.459,88.419,0.82464842]
[1772784303646,0.48920025,88.459,88.419,0.48464842]
[1772784304245,0.48920025,88.457,88.419,0.48464842]
[1772784304556,0.48920025,88.457,88.42,11.30965844]
[1772784305056,0.48920025,88.457,88.421,0.48464842]
[1772784306355,0.48920025,88.455,88.423,0.48464842]
[1772784307354,45.20846754,88.479,88.424,0.48464842]
[1772784307355,0.48920025,88.478,88.424,0.48464842]
[1772784308043,0.48920025,88.469,88.424,0.48464842]
[1772784308444,0.48920025,88.467,88.426,0.76897156]
[1772784308746,0.48920025,88.467,88.427,0.48464842]
[1772784311742,0.48920025,88.467,88.426,0.28432314]
[1772784311743,0.48920025,88.465,88.429,0.48464842]
[1772784313958,11.3026136,88.476,88.432,0.48464842]
[1772784315247,11.3026136,88.476,88.435,0.48464842]
[1772784316456,0.48920025,88.491,88.437,0.48464842]
[1772784316945,0.48920025,88.49,88.437,0.48464842]
[1772784317465,0.48920025,88.489,88.437,0.48464842]